lending/lending_fUSD_20240111
["ID","MTS","AMOUNT","RATE_DAILY","PERIOD"]
[311267680,1705006232570,-1000.0,0.000337,7]
[311267681,1705006232579,-202.0,0.00033933,5]
[311267682,1705006232588,-1000.0,0.00034,4]
[311267683,1705006232597,-155.0,0.00034,2]
[311267684,1705006232606,-1000.0,0.000342,2]
[311267685,1705006232615,-453.0390053,0.00034306,4]
[311267686,1705006232625,-894.49,0.00034521,2]
[311267687,1705006232634,-153.84,0.00034543,2]
[311267688,1705006232643,-165.05,0.00034655,2]
[311267689,1705006232652,-202.0,0.00034657,6]
[311267690,1705006232661,-1000.0,0.000347,7]
[311267691,1705006232670,-433.41,0.00034709,10]
[311267692,1705006232679,-551.88,0.00034709,10]
[311267693,1705006232688,-150.0,0.00034718,2]
[311267694,1705006232697,-150.0,0.00034718,2]
[311267695,1705006232708,-150.0,0.00034718,2]
[311267696,1705006232717,-173559.82731972,0.00034719,2]
[311267697,1705006232728,-200.0,0.0003472,10]
[311267698,1705006232737,-200.0,0.00034885,7]
[311267699,1705006232746,-1000.0,0.00034898,2]
[311267700,1705006232756,-346.46987124,0.00034899,2]
[311267701,1705006232765,-2125.19991409,0.000349,2]
[311267702,1705006232774,-468.96901353,0.0003499,4]
[311267703,1705006232783,-939.37733012,0.00034993,4]
[311267704,1705006232793,-594.9717253,0.00034996,4]
[311267705,1705006232803,-1625.0910501,0.00034996,2]
[311267706,1705006232812,-21257.3568796,0.00034996,2]
[311267707,1705006232824,-7776.8229512,0.00034996,2]
[311267708,1705006232834,-535.42119657,0.00034997,4]
[311267709,1705006232843,-201.6432844,0.00034997,2]
[311267710,1705006232853,-395.02098666,0.00034997,2]
[311267711,1705006232863,-179538.4651118,0.00034998,4]
[311267712,1705006232872,-40015.55546096,0.00034999,4]
[311267713,1705006232881,-11170.39703587,0.00034999,4]
[311267714,1705006232890,-802.19636617,0.00034999,4]
[311267715,1705006232900,-29679.71975928,0.00034999,4]
[311267716,1705006232908,-582.54733155,0.00034999,2]
[311267717,1705006232918,-80870.10647431,0.00035,2]
[311267718,1705006232927,-1000.0,0.00035,2]
[311267719,1705006232936,-1804.3259406,0.00035,4]
[311267720,1705006232946,-2528.67982368,0.00035,10]
[311267721,1705006232955,-255.41007841,0.00035,4]
[311267722,1705006232965,-185.50990881,0.00035,4]
[311267723,1705006232974,-16499.22203045,0.00035,2]
[311267724,1705006232983,-2500.0,0.00035,2]
[311267725,1705006232992,-619.07656999,0.00035,4]
[311267726,1705006233002,-4795.82816389,0.00035,7]
[311267727,1705006233013,-150.0,0.00035,5]
[311267728,1705006233022,-3412.80530229,0.00035,3]
[311267729,1705006233032,-800.0,0.00035,3]
[311267730,1705006233041,-300.0,0.00035,30]
[311267731,1705006233051,-213343.73974137,0.00035,2]
[311267732,1705006233060,-317.03589178,0.00035,30]
[311267733,1705006233069,-300.0,0.00035,30]
[311267734,1705006233078,-209.17447,0.00035,2]
[311267735,1705006233087,-412.78902739,0.00035,2]
[311267736,1705006233096,-412.78902739,0.00035,2]
[311267737,1705006233110,-412.78902739,0.00035,2]
[311267738,1705006233119,-412.78902739,0.00035,2]
[311267739,1705006233128,-412.78902739,0.00035,2]
[311267740,1705006233137,-412.78902739,0.00035,2]
[311267741,1705006233148,-412.78902739,0.00035,2]
[311267742,1705006233157,-412.78902739,0.00035,2]
[311267743,1705006233166,-412.78902739,0.00035,2]
[311267744,1705006233176,-412.78902739,0.00035,2]
[311267745,1705006233188,-412.78902739,0.00035,2]
[311267746,1705006233198,-412.78902739,0.00035,2]
[311267747,1705006233209,-412.78902739,0.00035,2]
[311267748,1705006233218,-412.78902739,0.00035,2]
[311267749,1705006233227,-412.78902739,0.00035,2]
[311267750,1705006233237,-412.78902739,0.00035,2]
[311267751,1705006233248,-412.78902739,0.00035,2]
[311267752,1705006233260,-412.78902739,0.00035,2]
[311267753,1705006233270,-412.78902739,0.00035,2]
[311267754,1705006233279,-412.78902739,0.00035,2]
[311267755,1705006233289,-412.78902739,0.00035,2]
[311267756,1705006233298,-412.78902739,0.00035,2]
[311267757,1705006233308,-412.78902739,0.00035,2]
[311267758,1705006233317,-412.78902739,0.00035,2]
[311267759,1705006233327,-412.78902739,0.00035,2]
[311267760,1705006233337,-412.78902739,0.00035,2]
[311267761,1705006233347,-412.78902739,0.00035,2]
[311267762,1705006233356,-412.78902739,0.00035,2]
[311267763,1705006233366,-150.0,0.0003502,2]
[311267764,1705006233375,-294.4,0.00035328,2]
[311267765,1705006233385,-202.0,0.00035381,8]
[311267766,1705006233394,-153.84,0.0003559,2]
[311267767,1705006233403,-562.0,0.000356,2]
[311267768,1705006233413,-151.0,0.00035616,7]
[311267769,1705006233423,-151.0,0.00035616,7]
[311267770,1705006233433,-151.0,0.00035616,7]
[311267771,1705006233443,-151.0,0.00035616,7]
[311267772,1705006233452,-151.0,0.00035616,7]
[311267773,1705006233462,-151.0,0.00035616,7]
[311267774,1705006233471,-151.0,0.00035616,7]
[311267775,1705006233482,-151.0,0.00035616,7]
[311267776,1705006233492,-151.0,0.00035616,7]
[311267777,1705006233502,-197.88188,0.00035616,7]
[311267778,1705006233514,-197.88188,0.00035616,7]
[311267779,1705006233523,-197.88188,0.00035616,7]
[311267780,1705006233533,-197.88188,0.00035616,7]
[311267781,1705006233543,-197.88188,0.00035616,7]
[311267782,1705006233552,-197.88188,0.00035616,7]
[311267783,1705006233562,-154.690788,0.00035616,7]
[311267784,1705006233572,-151.0,0.00035616,7]
[311267785,1705006233581,-800.0,0.00035673,10]
[311267786,1705006233593,-424.89,0.00035688,2]
[311267787,1705006233604,-1000.0,0.000357,7]
[311267788,1705006233614,-894.49,0.00035798,2]
[311267789,1705006233623,-158.73998173,0.00035995,2]
[311267790,1705006233634,-150.0,0.0003602,2]
[311267791,1705006233645,-171.18299284,0.00036089,2]
[311267792,1705006233655,-202.0,0.00036105,9]
[311267793,1705006233665,-180.0,0.0003633,2]
[311267794,1705006233675,-10000.0,0.00036366,2]
[311267795,1705006233685,-2125.19991397,0.00036478,2]
[311267796,1705006233695,-411.44593516,0.00036502,8]
[311267797,1705006233706,-705.6,0.00036532,2]
[311267798,1705006233716,-1080.85,0.00036613,15]
[311267799,1705006233725,-200.0,0.00036626,10]
[311267800,1705006233735,-800.0,0.00036626,10]
[311267801,1705006233745,-153.84,0.00036637,2]
[311267802,1705006233758,-2000.0,0.000367,2]
[311267803,1705006233768,-27578.68837208,0.000368,2]
[311267804,1705006233778,-202.0,0.00036829,11]
[311267805,1705006233788,-329.65771364,0.00036899,8]
[311267806,1705006233798,-1560.0,0.000369,7]
[311267807,1705006233808,-1397.68747687,0.00037,7]
[311267808,1705006233817,-5000.0,0.00037,3]
[311267809,1705006233828,-667.72309525,0.00037,7]
[311267810,1705006233838,-850.0,0.00037,3]
[311267811,1705006233852,-5492.13819172,0.00037024,2]
[311267812,1705006233861,-894.49,0.00037075,2]
[311267813,1705006233870,-324.12,0.000371,2]
[311267814,1705006233878,-800.0,0.00037106,10]
[311267815,1705006233888,-411.44593507,0.00037163,9]
[311267816,1705006233897,-568.23537423,0.00037398,2]
[311267817,1705006233906,-219.62752548,0.00037398,4]
[311267818,1705006233916,-19511.173418,0.000374,2]
[311267819,1705006233924,-206.3212,0.00037401,2]
[311267820,1705006233934,-174.22343723,0.00037402,10]
[311267821,1705006233943,-1638.28143364,0.00037402,10]
[311267822,1705006233952,-157.7,0.00037465,2]
[311267823,1705006233961,-12783.7466536,0.00037491,10]
[311267824,1705006233971,-1490.0,0.000375,12]
[311267825,1705006233980,-5000.0,0.000375,25]
[311267826,1705006233989,-150.0,0.00037501,2]
[311267827,1705006233998,-150.0,0.00037501,2]
[311267828,1705006234011,-150.0,0.00037501,2]
[311267829,1705006234020,-351.93098584,0.00037502,30]
[311267830,1705006234030,-2034.07884034,0.00037502,2]
[311267831,1705006234039,-190.31985697,0.00037502,30]
[311267832,1705006234049,-1182.0,0.00037502,120]
[311267833,1705006234058,-316.82205859,0.00037502,30]
[311267834,1705006234067,-21261.6859972,0.00037502,2]
[311267835,1705006234076,-176.12727895,0.00037502,120]
[311267836,1705006234086,-818.57080833,0.00037502,120]
[311267837,1705006234095,-495.72712304,0.00037502,120]
[311267838,1705006234108,-564.78216532,0.00037502,60]
[311267839,1705006234117,-183.30957028,0.00037502,120]
[311267840,1705006234126,-660.72322805,0.00037502,120]
[311267841,1705006234135,-369.35229811,0.00037502,120]
[311267842,1705006234145,-322.03794667,0.00037502,30]
[311267843,1705006234154,-224.80318464,0.00037502,120]
[311267844,1705006234163,-394.51917785,0.00037502,120]
[311267845,1705006234172,-756.0,0.00037502,120]
[311267846,1705006234181,-2248.03036559,0.00037502,120]
[311267847,1705006234190,-1988.81506555,0.00037502,30]
[311267848,1705006234200,-500.0,0.00037502,120]
[311267849,1705006234210,-5242.25567317,0.00037502,2]
[311267850,1705006234220,-664.93112251,0.00037502,2]
[311267851,1705006234229,-1966.56789,0.00037502,30]
[311267852,1705006234238,-1908.286752,0.00037502,30]
[311267853,1705006234248,-305.038799,0.00037502,30]
[311267854,1705006234263,-150.0,0.00037502,30]
[311267855,1705006234273,-7500.0,0.00037532,2]
[311267856,1705006234283,-250.824352,0.00037534,14]
[311267857,1705006234293,-202.0,0.00037553,12]
[311267858,1705006234303,-2000.0,0.00037566,4]
[311267859,1705006234313,-408.97814604,0.00037574,2]
[311267860,1705006234323,-288.63333334,0.0003758,2]
[311267861,1705006234332,-200.0,0.00037585,10]
[311267862,1705006234341,-800.0,0.00037585,10]
[311267863,1705006234351,-9129.0,0.0003759,3]
[311267864,1705006234360,-250.0,0.00037599,2]
[311267865,1705006234369,-150.0,0.00037639,2]
[311267866,1705006234378,-150.0,0.00037639,2]
[311267867,1705006234387,-150.0,0.0003764,2]
[311267868,1705006234553,-150.0,0.00037644,2]
[311267869,1705006234563,-150.0,0.00037649,2]
[311267870,1705006234573,-150.0,0.00037651,2]
[311267871,1705006234582,-150.0,0.00037651,2]
[311267872,1705006234592,-150.0,0.00037652,2]
[311267873,1705006234602,-150.0,0.00037652,2]
[311267874,1705006234611,-150.0,0.00037653,2]
[311267875,1705006234621,-150.0,0.00037654,2]
[311267876,1705006234631,-147740.52082365,0.0003766,3]
[311267877,1705006234640,-150.0,0.0003766,2]
[311267878,1705006234649,-110453.86813208,0.00037664,3]
[311267879,1705006234675,-901.94259,0.00037664,3]
[311267880,1705006234686,-25216.61116434,0.00037664,3]
[311267881,1705006234726,-412.78902739,0.00035,2]
[311267882,1705006234736,-562.74877261,0.00037664,3]
[311267883,1705006234747,-759.4,0.00037664,3]
[311267884,1705006234765,-12105.42934097,0.00037664,3]
[311267885,1705006234775,-220894.57065927,0.00037664,10]
[311267886,1705006234787,-640.14719797,0.00037664,10]
[311267887,1705006234811,-452.65686627,0.00037664,10]
[311267888,1705006234831,-901.79424429,0.00037664,10]
[311267892,1705006238039,-1000.0,0.00034199,4]
[311267893,1705006238048,-887.0,0.000342,2]
[311267894,1705006238057,-152.0,0.00034719,2]
[311267895,1705006238067,-412.78902739,0.00035,2]
[311267896,1705006238076,-412.78902739,0.00035,2]
[311267897,1705006238085,-412.78902739,0.00035,2]
[311267898,1705006238266,-412.78902739,0.00035,2]
[311267899,1705006238275,-203.69389044,0.00035,2]
[311267900,1705006238306,-1200.3635048,0.00034996,2]
[311267901,1705006238316,-209.09513695,0.00035,2]
[311267902,1705006238326,-412.78902739,0.00035,2]
[311267903,1705006238335,-201.53098961,0.00035,2]
[311267904,1705006238358,-211.25803778,0.00035,2]
[311267905,1705006238367,-412.78902739,0.00035,2]
[311267906,1705006238376,-412.78902739,0.00035,2]
[311267907,1705006238386,-392.96407479,0.00035,2]
[311267908,1705006238398,-19.8249526,0.00035,2]
[311267909,1705006238407,-412.78902739,0.00035,2]
[311267910,1705006238417,-412.78902739,0.00035,2]
[311267911,1705006238427,-412.78902739,0.00035,2]
[311267912,1705006238436,-412.78902739,0.00035,2]
[311267913,1705006238446,-412.78902739,0.00035,2]
[311267914,1705006238464,-412.78902739,0.00035,2]
[311267915,1705006238477,-412.78902739,0.00035,2]
[311267916,1705006238487,-412.78902739,0.00035,2]
[311267917,1705006238496,-412.78902739,0.00035,2]
[311267918,1705006238508,-412.78902739,0.00035,2]
[311267919,1705006238519,-412.78902739,0.00035,2]
[311267920,1705006238529,-412.78902739,0.00035,2]
[311267921,1705006238539,-412.78902739,0.00035,2]
[311267922,1705006238550,-412.78902739,0.00035,2]
[311267923,1705006238560,-412.78902739,0.00035,2]
[311267924,1705006238570,-412.78902739,0.00035,2]
[311267925,1705006238581,-412.78902739,0.00035,2]
[311267926,1705006238591,-412.78902739,0.00035,2]
[311267927,1705006238600,-412.78902739,0.00035,2]
[311267928,1705006238610,-412.78902739,0.00035,2]
[311267929,1705006238619,-412.78902739,0.00035,2]
[311267930,1705006238628,-412.78902739,0.00035,2]
[311267931,1705006238638,-412.78902739,0.00035,2]
[311267932,1705006238647,-412.78902739,0.00035,2]
[311267933,1705006238657,-412.78902739,0.00035,2]
[311267934,1705006238666,-412.78902739,0.00035,2]
[311267935,1705006238676,-412.78902739,0.00035,2]
[311267936,1705006238686,-4000.0,0.00036,2]
[311267937,1705006238695,-152.0,0.00037639,2]
[311267938,1705006238705,-31491.19897614,0.00037664,10]
[311267939,1705006238718,-713.55760071,0.00037664,10]
[311267941,1705006238731,-2196.79710131,0.00037664,10]
[311267945,1705006238762,-1123.23796047,0.00037664,10]
[311267946,1705006238773,-574.76744076,0.00037664,10]
[311267963,1705006238956,-412.78902739,0.00035,2]
[311267965,1705006238965,-412.78902739,0.00035,2]
[311267967,1705006238974,-20.2370628,0.00037664,10]
[311267972,1705006239023,-266.4855582,0.00035,2]
[311267974,1705006239035,-146.30346919,0.00035,2]
[311267976,1705006239044,-1543.32675736,0.00037664,10]
[311268033,1705006240875,-412.78902739,0.00035,2]
[311268034,1705006240894,-412.78902739,0.00035,2]
[311268035,1705006240907,-335.04376494,0.00035,2]
[311268036,1705006241166,-77.74526245,0.00035,2]
[311268037,1705006241180,-412.78902739,0.00035,2]
[311268038,1705006241193,-412.78902739,0.00035,2]
[311268039,1705006241206,-412.78902739,0.00035,2]
[311268040,1705006241219,-412.78902739,0.00035,2]
[311268041,1705006241232,-412.78902739,0.00035,2]
[311268042,1705006241246,-412.78902739,0.00035,2]
[311268043,1705006241260,-412.78902739,0.00035,2]
[311268044,1705006241273,-412.78902739,0.00035,2]
[311268045,1705006241286,-412.78902739,0.00035,2]
[311268046,1705006241298,-412.78902739,0.00035,2]
[311268047,1705006241311,-412.78902739,0.00035,2]
[311268048,1705006241323,-412.78902739,0.00035,2]
[311268049,1705006241336,-412.78902739,0.00035,2]
[311268050,1705006241348,-275.5,0.000371,2]
[311268051,1705006241361,-33473.88116565,0.00037664,10]
[311268052,1705006241374,-150.0,0.00037669,2]
[311268053,1705006241387,-53648.58999248,0.0003767,10]
[311268054,1705006241414,-412.78902739,0.00035,2]
[311268055,1705006241426,-4228.0471726,0.0003767,10]
[311268056,1705006241458,-268.72865852,0.0003767,10]
[311268057,1705006241475,-18557.1140982,0.0003767,10]
[311268058,1705006241488,-395.02098666,0.00037671,2]
[311268059,1705006241501,-181.21,0.00037674,2]
[311268060,1705006241514,-4781.43776382,0.00037674,3]
[311268070,1705006243384,-412.78902739,0.00035,2]
[311268071,1705006243393,-412.78902739,0.00035,2]
[311268072,1705006243403,-412.78902739,0.00035,2]
[311268073,1705006243414,-412.78902739,0.00035,2]
[311268074,1705006243423,-412.78902739,0.00035,2]
[311268075,1705006243433,-412.78902739,0.00035,2]
[311268076,1705006243443,-412.78902739,0.00035,2]
[311268077,1705006243452,-81.02106507,0.00035,2]
[311268078,1705006243464,-331.76796232,0.00035,2]
[311268079,1705006243779,-412.78902739,0.00035,2]
[311268080,1705006243802,-412.78902739,0.00035,2]
[311268081,1705006243815,-412.78902739,0.00035,2]
[311268082,1705006243825,-1401.20640514,0.00037674,3]
[311268083,1705006243837,-48295.71284948,0.00037674,3]
[311268084,1705006243852,-5420.42831519,0.00037674,3]
[311268085,1705006243863,-307.48877346,0.00037674,3]
[311268086,1705006243884,-300.27923843,0.00035,2]
[311268087,1705006243895,-112.50978896,0.00035,2]
[311268088,1705006243904,-1462.06622844,0.00037673,4]
[311268089,1705006243914,-5640.78703364,0.00037674,3]
[311268101,1705006246258,-412.78902739,0.00035,2]
[311268102,1705006246271,-412.78902739,0.00035,2]
[311268103,1705006246280,-623.04416055,0.00035,10]
[311268104,1705006246292,-1668.92890227,0.00035,10]
[311268105,1705006246301,-1808.37,0.00035583,2]
[311268106,1705006246310,-3653.43960475,0.000375,25]
[311268107,1705006246365,-1296.05,0.000375,25]
[311268108,1705006246376,-50.51039525,0.000375,25]
[311268109,1705006246385,-250.0,0.00037658,2]
[311268110,1705006246394,-99.52660475,0.00037673,2]
[311268111,1705006246406,-78.75306119,0.00037673,2]
[311268112,1705006246415,-155.0,0.00037673,2]
[311268113,1705006246425,-5781.88633881,0.00037674,3]
[311268114,1705006246448,-542.78897267,0.00037674,3]
[311268115,1705006246459,-2774.8369859,0.00037674,3]
[311268116,1705006246470,-2403.81635711,0.00037674,3]
[311268119,1705006269736,183476.29090067,0.00023,2]
[311268121,1705006318484,559.19420109,0.00020469,2]
[311268126,1705006349642,881.85563742,0.00021848,2]
[311268127,1705006352819,359.97538119,0.00018398,2]
[311268129,1705006446096,1237.04050238,0.0002,2]
[311268135,1705006639264,300.0,0.000225,8]
[311268136,1705006641346,600.0,0.000226,8]
[311268137,1705006643643,900.0,0.000227,8]
[311268138,1705006645533,1200.0,0.000228,8]
[311268139,1705006647639,1500.0,0.000229,8]
[311268140,1705006703319,176.05,0.00022,2]
[311268141,1705006770089,311.22904358,0.00023,6]
[311268142,1705006822603,-1198.0,0.00022547,2]
[311268149,1705006938410,2642.323,0.00022448,2]
[311268151,1705007055686,-230549.0,0.00022542,2]
[311268152,1705007055709,-350.72,0.00022548,2]
[311268153,1705007055732,-2370.0401,0.0002267,2]
[311268154,1705007055754,-657.15466029,0.0002276,2]
[311268155,1705007055775,-300.0,0.00022769,2]
[311268156,1705007055800,-150.0,0.00022769,2]
[311268157,1705007055824,-155.45274193,0.000228,2]
[311268158,1705007055847,-557.42388297,0.00022883,2]
[311268159,1705007055869,-436.67371112,0.00022898,2]
[311268160,1705007055892,-494.55554107,0.00022899,2]
[311268161,1705007055914,-550.81433263,0.00022899,2]
[311268162,1705007055936,-550.8143326,0.00022899,2]
[311268163,1705007055959,-550.8143326,0.000229,2]
[311268164,1705007055980,-550.8143326,0.000229,2]
[311268165,1705007056002,-4570.4174,0.000229,2]
[311268166,1705007056026,-155.45274192,0.000229,2]
[311268167,1705007056054,-11737.46,0.000229,2]
[311268168,1705007056076,-550.8143326,0.000229,2]
[311268169,1705007056099,-11737.46,0.000229,2]
[311268170,1705007056121,-3037.17424926,0.00022998,2]
[311268171,1705007056142,-1274.99835078,0.00022998,2]
[311268172,1705007056164,-314.17754438,0.00022998,2]
[311268173,1705007056186,-156.86023686,0.00022998,2]
[311268174,1705007056207,-155.27341829,0.00022998,2]
[311268175,1705007056229,-5669.07883189,0.00022999,2]
[311268176,1705007056251,-1101.80023115,0.00022999,2]
[311268177,1705007056273,-2066.92786203,0.00022999,2]
[311268178,1705007056296,-21125.52634739,0.00022999,2]
[311268179,1705007056318,-150.99,0.00022999,2]
[311268180,1705007056341,-6428.35,0.00022999,2]
[311268181,1705007056614,-8917.46,0.00022999,2]
[311268182,1705007056643,-1682625.50048564,0.00023,2]
[311268183,1705007072158,1852.8340926,0.00022448,2]
[311268184,1705007151093,279.3351,0.00022442,2]
[311268185,1705007225119,-155.06673229,0.00022897,2]
[311268186,1705007227991,169.52,0.0002636,120]
[311268188,1705007242400,3624.2701,0.00022442,2]
[311268189,1705007313117,176.05,0.00022,2]
[311268190,1705007362899,558.73823106,0.00020468,2]
[311268236,1705007433190,-176.05,0.00022548,2]
[311268237,1705007433202,-367.0,0.0002277,2]
[311268238,1705007433213,-150.0,0.00022896,2]
[311268239,1705007433223,-150.0,0.00022896,2]
[311268240,1705007433234,-4542.17140813,0.00022897,2]
[311268241,1705007433245,-370.42383277,0.00022898,2]
[311268242,1705007433256,-360.95758828,0.00022898,2]
[311268243,1705007433265,-705.51400957,0.00022898,2]
[311268245,1705007433274,-2580.00013988,0.00022898,2]
[311268247,1705007433283,-3241.12310708,0.00022898,2]
[311268248,1705007433293,-324.45072717,0.000229,2]
[311268249,1705007433302,-553.2138889,0.000229,2]
[311268250,1705007433311,-615.10913698,0.000229,2]
[311268252,1705007433320,-281.82254854,0.0002299,2]
[311268254,1705007433329,-155.0,0.00022997,2]
[311268256,1705007433338,-1134.7649775,0.00022997,2]
[311268258,1705007433347,-295.08684247,0.00022998,2]
[311268260,1705007433357,-173.89319056,0.00022998,2]
[311268262,1705007433366,-155.0,0.00022998,2]
[311268264,1705007433375,-1705.71895053,0.00022998,2]
[311268266,1705007433385,-155.04439657,0.00022998,2]
[311268268,1705007433393,-494.59515027,0.00022999,2]
[311268270,1705007433403,-230.64175419,0.00022999,2]
[311268272,1705007433412,-311.78,0.00022999,2]
[311268274,1705007433420,-564505.57995876,0.00023,2]
[311268278,1705007433445,-1330.87,0.00023,2]
[311268280,1705007433457,-365.30441413,0.00023,2]
[311268282,1705007433476,-79394.5633968,0.00023,2]
[311268283,1705007433523,-1031.25557993,0.00023,2]
[311268284,1705007433545,-3204.90558587,0.00023,2]
[311268285,1705007433567,-1200892.42331913,0.00023,2]
[311268301,1705007438254,-4779.37596,0.00023,2]
[311268305,1705007438297,-785.2873475,0.00023,2]
[311268307,1705007438308,-1317.0138514,0.00023,2]
[311268310,1705007438342,-653.31138806,0.00023,2]
[311268312,1705007438426,-883401.69964904,0.00023,2]
[311268313,1705007438435,-699019.28936756,0.00023,2]
[311268314,1705007438444,-176.05,0.00023096,2]
[311268315,1705007438453,-350.0,0.00023288,4]
[311268316,1705007438462,-361.16499758,0.00023288,4]
[311268317,1705007438471,-500.0,0.00023288,4]
[311268318,1705007438480,-500.0,0.00023288,4]
[311268319,1705007438490,-342.21502869,0.00023288,4]
[311268320,1705007438498,-350.00000001,0.00023288,4]
[311268321,1705007438508,-453.43789362,0.00023288,2]
[311268322,1705007438516,-182.23512316,0.00023288,2]
[311268323,1705007438525,-210.58137275,0.00023288,2]
[311268324,1705007438534,-500.0,0.00023288,4]
[311268325,1705007438547,-213.5722541,0.00023288,4]
[311268326,1705007438558,-428.5,0.00023303,2]
[311268327,1705007438568,-242.07,0.00023346,2]
[311268328,1705007438577,-823.36,0.00023624,2]
[311268329,1705007438586,-176.05,0.00023644,2]
[311268330,1705007438597,-23900.0,0.00023852,2]
[311268331,1705007438606,-155.67956808,0.00024,2]
[311268332,1705007438615,-430.89321108,0.00024,2]
[311268333,1705007438624,-200.84765735,0.00024,2]
[311268334,1705007438634,-499.99,0.00024,2]
[311268335,1705007438644,-200.0,0.00024047,2]
[311268336,1705007438653,-176.05,0.00024192,2]
[311268337,1705007438662,-242.07,0.00024513,2]
[311268338,1705007438672,-188.25436715,0.0002474,2]
[311268339,1705007438681,-550.0,0.00025,3]
[311268340,1705007438690,-1581.98629386,0.00025,2]
[311268341,1705007438699,-508.04025934,0.00025,2]
[311268342,1705007438710,-200.0,0.00025,2]
[311268343,1705007438719,-1246.87746617,0.00025,2]
[311268344,1705007438728,-239.9633075,0.00025,2]
[311268346,1705007438738,-167.05182833,0.00025,2]
[311268347,1705007438748,-1017.16964654,0.00025,2]
[311268350,1705007438757,-692.73695879,0.00025,2]
[311268351,1705007438766,-201.7363193,0.00025,2]
[311268354,1705007438776,-302.84681763,0.00025,2]
[311268356,1705007438785,-432.95697207,0.00025,2]
[311268357,1705007438794,-650.0,0.00025,2]
[311268360,1705007438803,-494.55554107,0.00025028,2]
[311268361,1705007438812,-324.45072715,0.00025043,2]
[311268363,1705007438822,-210.0,0.00025186,2]
[311268366,1705007438831,-210.0,0.00025186,2]
[311268368,1705007438841,-423.84,0.00025385,2]
[311268370,1705007438850,-428.5,0.00025567,2]
[311268373,1705007438859,-242.07,0.00025681,2]
[311268375,1705007438868,-768.82490482,0.00026,2]
[311268378,1705007438877,-2000.0,0.00026331,2]
[311268381,1705007438886,-164.61,0.0002636,2]
[311268382,1705007438896,-176.64,0.0002637,2]
[311268385,1705007438906,-718.56,0.00026481,2]
[311268389,1705007438916,-155.32,0.00026532,2]
[311268391,1705007438927,-823.36,0.00026577,2]
[311268394,1705007438938,-1220.67,0.00026584,2]
[311268396,1705007438947,-250.0,0.00026839,2]
[311268400,1705007438974,-242.07,0.00026848,2]
[311268403,1705007438983,-162.56,0.00026962,2]
[311268406,1705007438992,-600.0,0.00027,3]
[311268409,1705007439002,-999.99,0.00027,2]
[311268412,1705007439011,-494.55554107,0.00027156,3]
[311268414,1705007439020,-162.56,0.00027162,2]
[311268417,1705007439029,-324.45072715,0.00027186,3]
[311268419,1705007439038,-162.56,0.00027363,2]
[311268422,1705007439047,-155.0,0.00027397,2]
[311268424,1705007439056,-237.5410763,0.00027397,2]
[311268426,1705007439065,-5940.0,0.00027397,2]
[311268428,1705007439074,-250.0,0.00027397,2]
[311268430,1705007439083,-155.32,0.00027511,2]
[311268432,1705007439092,-162.56,0.00027564,2]
[311268434,1705007439101,-169.43,0.00027658,2]
[311268436,1705007439110,-162.56,0.00027764,2]
[311268438,1705007439119,-150.0,0.00027773,2]
[311268440,1705007439128,-428.5,0.0002783,2]
[311268442,1705007439136,-165.31,0.00027886,2]
[311268444,1705007439145,-151.94,0.00027935,2]
[311268446,1705007439154,-162.56,0.00027965,2]
[311268448,1705007439163,-202.73182804,0.00028,2]
[311268450,1705007439172,-687.67126358,0.00028,2]
[311268452,1705007439181,-10133.3742,0.00028,4]
[311268454,1705007439190,-242.07,0.00028015,2]
[311268456,1705007439199,-888.63,0.00028129,4]